bitfinex/quotes_SOLUSD_20240702
["timestamp","ask_amount","ask_price","bid_price","bid_amount"]
[1719938771331,23.70252627,149.07,149.04,6.7093]
[1719938771511,16.7,149.06,149.04,6.7093]
[1719938772115,7.00252627,149.07,149.04,6.7093]
[1719938772307,16.7,149.06,149.04,6.7093]
[1719938772510,7.00252627,149.07,149.05,6.7089]
[1719938772730,23.70252627,149.07,149.05,6.7089]
[1719938772909,23.70252627,149.07,149.06,6.7087]
[1719938773245,23.70252627,149.07,149.01,16.7763]
[1719938773530,23.70252627,149.07,149.04,6.7095]
[1719938773531,7.00252627,149.07,149.04,6.7095]
[1719938773925,23.70252627,149.07,149.05,6.7089]
[1719938774123,7.00252627,149.07,149.04,6.7095]
[1719938774311,16.7,149.06,149.05,6.7089]
[1719938774512,16.7,149.06,149.04,23.4826]
[1719938775012,16.7,149.05,149.04,23.4826]
[1719938775210,16.7,149.06,149.04,23.4826]
[1719938775428,16.7,149.06,149.04,16.7732]
[1719938775612,16.7,149.05,149.04,16.7732]
[1719938775810,16.7,149.05,149.03,6.71]
[1719938776020,16.7,149.04,149.03,6.71]
[1719938776739,16.7,149.05,149.04,6.7095]
[1719938776941,16.7,149.05,149.03,23.4848]
[1719938777236,16.7,149.05,149.04,6.7096]
[1719938777414,7.00252627,149.07,149.05,6.7089]
[1719938777615,16.7,149.06,149.05,6.7089]
[1719938778436,7.00252627,149.07,149.05,6.7089]
[1719938778649,16.7,149.06,149.05,6.7089]
[1719938778939,7.00252627,149.07,149.05,6.7089]
[1719938779142,16.7,149.06,149.05,6.7089]
[1719938779647,16.7,149.06,149.03,16.775]
[1719938779648,7.00252627,149.07,149.03,16.775]
[1719938779811,16.7,149.04,149.01,33.5534]
[1719938780011,16.7,149.03,149.02,6.7102]
[1719938780239,16.7,149.04,149.01,33.5534]
[1719938780449,16.7,149.05,149.04,6.7094]
[1719938780942,7.00252627,149.07,149.04,6.7094]
[1719938781136,7.5382614,149.09,149.05,6.7088]
[1719938781432,16.7,149.06,149.05,6.7088]
[1719938781635,16.7,149.06,149.03,16.7751]
[1719938781636,7.01578857,149.07,149.06,23.4804]
[1719938781844,23.71578857,149.07,149.06,23.4804]
[1719938782943,7.5379614,149.09,149.06,16.7717]
[1719938783130,16.7,149.07,149.06,16.7717]
[1719938784743,7.5379614,149.09,149.06,16.7717]
[1719938784914,16.7,149.07,149.06,16.7717]
[1719938785547,16.7,149.07,149.01,33.5534]
[1719938785719,0.8306614,149.09,149.01,33.5534]
[1719938785720,6.7081,149.08,149.01,33.5534]
[1719938785914,16.7,149.05,149.01,33.5534]
[1719938786990,0.8306614,149.09,149.02,16.7]
[1719938787144,16.7,149.07,149.02,16.7]
[1719938787460,0.8306614,149.09,149.06,6.7082]
[1719938787758,16.7,149.07,149.06,6.7082]
[1719938788449,16.7,149.07,149.05,6.709]
[1719938788759,16.7,149.06,149.04,23.4827]
[1719938788934,16.7,149.05,149.04,23.4827]
[1719938789134,16.7,149.05,149.01,50.3298]
[1719938789337,16.7,149.02,149.01,16.7764]
[1719938789548,16.7,149.02,148.93,5.8431]
[1719938789851,16.7,149.0,148.95,16.7]
[1719938790054,16.7,149.01,148.96,16.7]
[1719938791636,29.6284,149.05,148.97,16.7]
[1719938791830,16.7,149.02,148.97,16.7]
[1719938793269,7.01566355,149.04,148.97,16.7]
[1719938793557,16.7,149.03,148.98,16.7]
[1719938793762,7.01566355,149.04,148.98,16.7]
[1719938794136,7.01566355,149.04,149.01,16.7771]
[1719938794346,23.71566355,149.04,149.03,6.71]
[1719938794781,7.01566355,149.04,149.03,6.71]
[1719938794953,16.7,149.05,149.04,23.4836]
[1719938795146,7.01355839,149.07,149.05,6.709]
[1719938795342,7.01355839,149.07,149.05,6.7089]
[1719938795573,16.7,149.06,149.05,6.7089]
[1719938797070,16.7,149.06,149.04,23.4835]
[1719938797282,16.7,149.05,149.04,23.4835]
[1719938797877,16.7,149.05,149.04,16.774]
[1719938798276,7.01355839,149.07,149.04,16.774]
[1719938798470,16.7,149.05,149.04,16.774]
[1719938798671,16.7,149.05,149.04,23.4836]
[1719938799179,16.7,149.06,149.05,6.709]
[1719938799395,7.01355839,149.07,149.06,6.7087]
[1719938799758,23.71355839,149.07,149.06,6.7087]
[1719938799969,7.01355839,149.07,149.06,6.7087]
[1719938800159,0.8306614,149.09,149.06,6.7087]
[1719938800362,17.5306614,149.09,149.07,6.708]
[1719938800563,16.7,149.08,149.07,6.708]
[1719938801075,0.8306614,149.09,149.07,6.708]
[1719938801383,16.7,149.08,149.07,6.708]
[1719938802966,0.8306614,149.09,149.07,6.708]
[1719938803175,0.8306614,149.09,149.08,6.7078]
[1719938803373,17.5306614,149.09,149.08,6.7078]
[1719938803559,0.8306614,149.09,149.08,6.7078]
[1719938804967,0.8306614,149.09,149.07,6.708]
[1719938805179,17.5306614,149.09,149.07,6.708]
[1719938805379,0.8306614,149.09,149.07,6.708]
[1719938805884,0.8306614,149.09,149.08,6.7078]
[1719938807308,17.5306614,149.09,149.08,6.7078]
[1719938807580,17.5306614,149.09,149.06,23.4794]
[1719938807794,16.7,149.07,149.06,16.771]
[1719938808162,16.7,149.07,149.06,23.4797]
[1719938808589,7.8433667,149.09,149.07,6.7081]
[1719938808793,16.7,149.08,149.07,6.7081]
[1719938810081,7.8433667,149.09,149.07,6.7081]
[1719938810292,7.8433667,149.09,149.06,16.771]
[1719938810293,16.7,149.08,149.06,23.4796]
[1719938811195,16.7,149.07,149.04,6.7095]
[1719938811486,16.7,149.06,149.0,22.5431]
[1719938811690,16.7,149.06,149.01,16.7]
[1719938813188,7.8433667,149.09,149.01,16.7]
[1719938813398,16.7,149.07,149.02,16.7]
[1719938815066,7.8433667,149.09,149.02,16.7]
[1719938815495,16.7,149.07,149.02,16.7]
[1719938815800,16.7,149.08,149.03,16.7]
[1719938815982,7.8433667,149.09,149.03,16.7]
[1719938816181,16.7,149.08,149.03,16.7]
[1719938816377,24.5433667,149.09,149.08,6.7078]
[1719938816581,17.5306614,149.09,149.08,6.7078]
[1719938818088,0.8306614,149.09,149.08,6.7078]
[1719938822104,17.5306614,149.09,149.08,6.7078]
[1719938822396,0.8306614,149.09,149.08,6.7078]
[1719938823208,17.5306614,149.09,149.08,6.7078]
[1719938824275,0.8306614,149.09,149.08,6.7078]
[1719938824487,17.5306614,149.09,149.08,6.7078]
[1719938824900,0.8306614,149.09,149.08,6.7078]
[1719938825105,17.5306614,149.09,149.08,6.7078]
[1719938825702,0.8306614,149.09,149.08,6.7078]
[1719938826377,17.5306614,149.09,149.08,6.7078]
[1719938827206,17.5306614,149.09,149.07,16.7703]
[1719938827403,16.7,149.08,149.07,16.7703]
[1719938827595,32.8066,149.08,148.99,33.5577]
[1719938827906,16.7,149.03,148.99,33.5577]
[1719938828139,20.0,149.07,148.99,50.2577]
[1719938828413,16.7,149.05,149.0,16.7]
[1719938828584,16.7,149.05,149.0,16.2]
[1719938830504,23.12141135,149.08,149.0,16.2]
[1719938830708,16.7,149.07,149.02,16.7]
[1719938831914,23.12141135,149.08,148.99,33.5577]
[1719938832112,16.7,149.05,149.0,16.7]
[1719938832792,23.12141135,149.08,149.0,16.7]
[1719938833000,16.7,149.06,149.01,16.7]
[1719938833308,16.7,149.07,149.02,16.7]
[1719938833634,16.7,149.06,149.01,16.7]
[1719938835107,23.12141135,149.08,148.99,33.5577]
[1719938835304,23.12141135,149.08,149.03,16.7]
[1719938835305,39.82141135,149.08,149.03,16.7]
[1719938835506,32.8066,149.08,149.03,16.7]
[1719938835705,16.1066,149.08,149.03,16.7]
[1719938835902,32.8066,149.08,149.03,16.7]
[1719938836415,16.1066,149.08,149.03,16.7]
[1719938836801,16.1066,149.08,149.04,16.7]
[1719938837002,32.8066,149.08,149.03,16.7]
[1719938838718,16.1066,149.08,149.03,16.7]
[1719938838922,32.8066,149.08,148.96,192.26150405]
[1719938839105,16.7,149.06,149.01,16.7]
[1719938839299,16.7,149.07,149.02,16.7]
[1719938839807,16.7,149.07,148.97,2.9238825]
[1719938840013,16.7,149.04,148.99,16.7]
[1719938840527,6.0879,149.07,148.99,16.7]
[1719938840728,16.7,149.04,148.99,16.7]
[1719938841409,16.7,149.05,149.0,16.7]
[1719938843328,16.7,149.06,149.01,16.7]
[1719938843711,6.0879,149.07,149.01,16.7]
[1719938843914,16.7,149.06,149.01,16.7]
[1719938844811,16.7,149.05,148.97,2.9238825]
[1719938845011,16.7,149.05,148.97,22.9238825]
[1719938845907,6.0879,149.07,148.95,5.8431]
[1719938846110,16.7,149.01,148.96,16.7]
[1719938846825,16.7,149.01,148.93,16.1066]
[1719938847027,16.7,149.01,148.96,16.7]
[1719938849833,16.7,149.01,148.94,20.0]
[1719938850025,16.7,149.0,148.95,16.7]
[1719938850403,16.7,149.0,148.93,20.0]
[1719938850708,16.7,148.98,148.93,20.0]
[1719938850918,16.7,148.98,148.94,16.7]
[1719938851131,16.7,148.98,148.93,16.7]
[1719938851737,16.7,148.98,148.9,16.2537]
[1719938851915,16.7,148.98,148.93,16.7]
[1719938852109,16.7,148.98,148.9,16.2537]
[1719938852314,16.7,148.98,148.93,16.7]
[1719938853331,16.7,148.98,148.94,16.7]
[1719938854115,16.7,148.98,148.93,16.7]
[1719938854725,16.7,148.97,148.92,16.7]
[1719938854922,16.7,148.96,148.91,16.7]
[1719938855516,16.7,148.97,148.92,16.7]
[1719938856135,6.2861,149.01,148.92,16.7]
[1719938856442,6.2861,149.01,148.89,16.7]
[1719938856443,16.7,148.99,148.89,16.7]
[1719938856649,16.7,148.99,148.94,16.7]
[1719938857739,16.7,148.98,148.9,2.92525706]
[1719938858049,7.01536141,149.0,148.91,1.34255658]
[1719938858249,7.01536141,149.0,148.96,16.7]
[1719938858450,16.2537,149.02,148.96,16.7]
[1719938858655,32.9537,149.02,148.97,16.7]
[1719938859153,16.7,149.01,148.96,16.7]
[1719938859856,16.7,149.01,148.9,22.92525706]
[1719938860144,16.7,149.01,148.95,16.7]
[1719938860344,16.2537,149.02,148.98,16.7]
[1719938860549,32.9537,149.02,148.97,16.7]
[1719938860851,16.2537,149.02,148.97,16.7]
[1719938861020,32.9537,149.02,148.97,16.7]
[1719938861844,32.9537,149.02,148.93,5.8431]
[1719938862053,32.9537,149.02,148.97,16.7]
[1719938862436,16.2537,149.02,148.98,16.7]
[1719938864939,32.9537,149.02,148.94,20.0]
[1719938865270,16.2537,149.02,148.97,16.7]
[1719938865553,32.9537,149.02,148.97,16.7]
[1719938866123,16.7,149.01,148.96,16.7]
[1719938866330,32.9537,149.02,148.97,16.7]
[1719938866836,32.9537,149.02,148.94,20.0]
[1719938867135,32.9537,149.02,148.96,16.7]
[1719938867533,16.7,149.01,148.94,20.0]
[1719938867737,16.7,149.0,148.95,16.7]
[1719938868136,16.7,149.0,148.92,20.0]
[1719938868137,16.2537,149.02,148.96,16.7]
[1719938868339,16.7,149.01,148.96,16.7]
[1719938868854,16.7,149.01,148.92,20.0]
[1719938869058,16.7,149.01,148.96,16.7]
[1719938869756,16.7,149.0,148.95,16.7]
[1719938869956,16.7,149.0,148.96,20.0]
[1719938870128,16.2537,149.02,148.96,20.0]
[1719938870329,16.7,149.0,148.96,20.0]
[1719938870537,16.7,149.01,148.96,36.7]
[1719938871534,16.7,149.01,148.96,20.0]
[1719938871739,16.7,149.01,148.96,16.7]
[1719938872857,16.7,149.01,148.92,20.0]
[1719938873062,16.7,149.01,148.96,16.7]
[1719938873255,16.2537,149.02,148.92,120.0]
[1719938873435,16.2537,149.02,148.97,16.7]
[1719938873636,16.2537,149.02,149.01,6.7109]
[1719938876147,7.00563605,149.03,149.02,6.7105]
[1719938876331,6.5587,149.04,149.03,6.71]
[1719938876528,15.4497,149.06,149.05,6.7091]
[1719938876734,52.1497,149.06,149.05,6.7091]
[1719938876946,59.15226461,149.06,149.05,6.7091]
[1719938878239,39.15226461,149.06,149.05,6.7091]
[1719938878443,39.15226461,149.06,149.04,23.4827]
[1719938878648,16.7,149.05,149.04,23.4828]
[1719938879059,22.45226461,149.06,149.04,23.4828]
[1719938879249,16.7,149.05,149.04,23.4828]
[1719938880465,22.45226461,149.06,149.04,16.7732]
[1719938880775,16.7,149.05,149.04,23.4826]
[1719938880947,22.45275807,149.06,149.04,23.4826]
[1719938881147,16.7,149.05,149.04,23.4826]
[1719938881358,16.7,149.05,149.04,16.7732]
[1719938881665,16.7,149.05,149.02,6.7104]
[1719938881838,22.45275807,149.06,149.03,6.71]
[1719938882164,22.45275807,149.06,149.01,16.7767]
[1719938882165,16.7,149.04,149.01,16.7767]
[1719938882372,16.7,149.02,149.01,23.4872]
[1719938882758,22.45275807,149.06,149.01,16.7767]
[1719938883075,16.7,149.03,149.02,6.7105]
[1719938883583,22.45275807,149.06,149.03,23.4845]
[1719938883584,16.7,149.04,149.03,23.4845]
[1719938884153,22.45275807,149.06,149.04,6.7092]
[1719938884464,16.7,149.05,149.04,6.7096]
[1719938887180,22.45275807,149.06,149.05,6.7091]
[1719938887358,39.15275807,149.06,149.05,6.7091]
[1719938887556,39.15275807,149.06,149.04,6.7094]
[1719938888155,39.15275807,149.06,149.05,6.7091]
[1719938888577,32.1497,149.06,149.05,6.7091]
[1719938888770,15.4497,149.06,149.05,6.7091]
[1719938889084,32.1497,149.06,149.05,6.7091]
[1719938889447,15.4497,149.06,149.05,6.7091]
[1719938889651,32.1497,149.06,149.05,6.7091]
[1719938890186,15.4497,149.06,149.05,6.7091]
[1719938890486,32.1497,149.06,149.05,6.7091]
[1719938891063,15.4497,149.06,149.05,6.7091]
[1719938891263,16.7,149.06,149.05,6.7091]
[1719938891856,7.00494869,149.07,149.06,23.4804]
[1719938892062,0.8306614,149.09,149.08,6.7078]
[1719938892462,17.5306614,149.09,149.08,6.7078]
[1719938892781,0.8306614,149.09,149.06,16.7717]
[1719938892958,16.7,149.08,149.07,6.7082]
[1719938893277,16.7,149.08,149.06,23.4802]
[1719938893481,16.7,149.07,149.06,23.4802]
[1719938894083,23.4084,149.07,149.03,23.4842]
[1719938894378,16.7,149.05,149.04,6.7094]
[1719938896367,16.7,149.05,149.03,16.7743]
[1719938896577,16.7,149.04,149.03,23.4842]
[1719938897169,0.8306614,149.09,149.07,6.7081]
[1719938897482,16.7,149.08,149.07,6.7081]
[1719938897866,0.8306614,149.09,149.08,6.7078]
[1719938898081,17.5306614,149.09,149.08,6.7078]
[1719938898382,17.5306614,149.09,149.07,6.7081]
[1719938900274,0.8306614,149.09,149.06,23.48]
[1719938900464,16.7,149.07,149.06,23.48]
[1719938901162,0.8306614,149.09,149.06,16.7715]
[1719938901373,16.7,149.07,149.06,16.7715]
[1719938902089,16.7,149.07,149.06,23.4799]
[1719938904394,0.8306614,149.09,149.07,6.708]
[1719938904575,16.7,149.08,149.07,6.708]
[1719938905295,16.7,149.08,149.02,33.5507]
[1719938905467,16.7,149.05,149.02,33.5507]
[1719938906256,16.7,149.05,149.04,6.7093]
[1719938906997,16.7,149.05,149.03,23.4839]
[1719938907179,15.4153,149.04,149.0,23.4885]
[1719938907489,16.7,149.01,149.0,16.7775]
[1719938907965,16.7,149.01,149.0,23.4889]
[1719938910292,15.4153,149.04,149.02,6.7103]
[1719938910494,16.7,149.03,149.02,6.7103]
[1719938912095,33.4,149.03,149.0,16.7775]
[1719938912388,16.7,149.01,149.0,23.4886]
[1719938915183,15.4153,149.04,149.03,6.71]
[1719938915496,52.1153,149.04,149.02,16.776]
[1719938915787,36.7,149.03,149.02,23.4865]
[1719938916093,36.7,149.03,149.02,16.776]
[1719938916294,36.7,149.03,149.02,23.4865]
[1719938918482,7.01135308,149.04,149.03,6.71]
[1719938918791,16.7,149.05,149.03,6.71]
[1719938920174,16.7,149.05,149.04,6.7096]
[1719938920374,7.00865356,149.06,149.05,6.7091]
[1719938920575,23.70865356,149.06,149.05,6.7091]
[1719938921195,7.00865356,149.06,149.05,6.7091]
[1719938921403,23.70865356,149.06,149.05,6.7091]
[1719938921593,7.00865356,149.06,149.05,6.7091]
[1719938921802,16.7,149.07,149.06,6.7087]
[1719938922171,7.83809711,149.09,149.07,6.7082]
[1719938922374,20.0,149.08,149.07,6.7082]
[1719938922606,36.7,149.08,149.07,6.7082]
[1719938923282,20.0,149.08,149.07,6.7082]
[1719938923487,16.7,149.08,149.07,6.7082]
[1719938926394,7.83809711,149.09,149.08,6.7078]
[1719938926586,17.5306614,149.09,149.08,6.7078]
[1719938927600,17.5306614,149.09,149.07,6.708]
[1719938928501,17.5306614,149.09,149.08,6.7078]
[1719938928680,0.8306614,149.09,149.08,6.7078]
[1719938929007,17.5306614,149.09,149.08,6.7078]
[1719938929375,0.8306614,149.09,149.08,6.7078]
[1719938929590,17.5306614,149.09,149.08,6.7078]
[1719938936482,17.5306614,149.09,149.08,23.4773]
[1719938936976,17.5306614,149.09,149.05,33.5444]
[1719938936977,17.5306614,149.09,149.07,6.7081]
[1719938937182,16.7,149.08,149.06,6.7085]
[1719938937487,16.7,149.07,149.06,6.7085]
[1719938939487,7.83556629,149.09,149.07,6.708]
[1719938939688,16.7,149.08,149.07,6.708]
[1719938940585,16.7,149.08,149.06,6.7086]
[1719938940786,16.7,149.07,149.06,6.7086]
[1719938943415,7.83556629,149.09,149.07,16.7704]
[1719938943595,16.7,149.08,149.07,23.4786]
[1719938946430,16.7,149.08,149.04,16.7733]
[1719938946728,16.7,149.05,149.04,23.4824]
[1719938946918,7.83556629,149.09,149.06,6.7084]
[1719938947120,7.83556629,149.09,149.06,16.7709]
[1719938947306,16.7,149.08,149.06,16.7709]
[1719938947514,7.83556629,149.09,149.08,6.7078]
[1719938947700,24.53556629,149.09,149.08,6.7078]
[1719938951315,7.83556629,149.09,149.08,6.7078]
[1719938951515,24.53556629,149.09,149.08,6.7078]
[1719938952329,7.83556629,149.09,149.08,6.7078]
[1719938957036,24.53556629,149.09,149.08,6.7078]
[1719938957240,7.83556629,149.09,149.08,6.7078]
[1719938957740,7.83556629,149.09,149.08,23.4773]
[1719938958711,24.53556629,149.09,149.08,23.4773]
[1719938959235,7.83556629,149.09,149.08,16.7695]
[1719938959427,24.53556629,149.09,149.05,50.3163]
[1719938959633,16.7,149.07,149.06,6.7087]
[1719938962149,7.83556629,149.09,149.07,23.4783]
[1719938962468,16.7,149.08,149.07,23.4783]
[1719938963236,16.7,149.08,149.07,23.4786]
[1719938964234,7.83556629,149.09,149.08,6.7078]
[1719938964445,24.53556629,149.09,149.08,6.7078]
[1719938965036,7.83556629,149.09,149.08,6.7078]
[1719938965445,24.53556629,149.09,149.08,6.7078]
[1719938966247,7.83556629,149.09,149.08,6.7078]
[1719938966447,24.53556629,149.09,149.08,6.7078]
[1719938967442,7.83556629,149.09,149.08,6.7078]
[1719938968457,24.53556629,149.09,149.08,6.7078]
[1719938970530,24.53556629,149.09,149.07,23.4785]
[1719938970829,16.7,149.08,149.07,23.4785]
[1719938971542,7.83556629,149.09,149.08,6.7078]
[1719938971745,24.53556629,149.09,149.08,6.7078]
[1719938975032,24.53556629,149.09,149.07,23.4786]
[1719938975364,16.7,149.08,149.07,23.4786]
[1719938976034,16.7,149.08,149.04,16.7731]
[1719938976239,16.7,149.05,149.04,23.4825]
[1719938977242,7.0024901,149.06,149.05,6.7091]
[1719938977443,23.7024901,149.06,149.04,23.4823]
[1719938977642,16.7,149.05,149.04,23.4823]
[1719938978452,7.0024901,149.06,149.05,6.7091]
[1719938978663,23.7024901,149.06,149.05,6.7091]
[1719938979457,7.0024901,149.06,149.05,6.7091]
[1719938979658,23.7024901,149.06,149.05,6.7091]
[1719938979849,23.7024901,149.06,149.04,23.4825]
[1719938980049,16.7,149.05,149.04,23.4825]
[1719938980560,36.7,149.05,149.01,16.7765]
[1719938980764,16.7,149.02,149.01,16.7765]
[1719938981153,16.7,149.02,148.98,16.7799]
[1719938981335,16.7,148.99,148.98,16.7799]
[1719938981540,16.7,148.99,148.98,23.4918]
[1719938982049,16.7,148.99,148.98,16.7799]
[1719938982248,16.7,148.99,148.97,6.7126]
[1719938982470,16.7,148.98,148.97,6.7126]
[1719938983168,13.2093,149.03,148.99,6.7118]
[1719938983375,16.7,149.0,148.99,6.7117]
[1719938983674,36.7,149.0,148.99,6.7117]
[1719938984369,36.7,149.0,148.98,23.4928]
[1719938984674,20.0,149.0,148.99,6.7118]
[1719938984849,73.2992,149.03,149.0,16.7782]
[1719938985052,15.282,149.04,149.02,6.7105]
[1719938985266,15.282,149.04,149.03,6.71]
[1719938985576,15.51035972,149.06,149.04,6.7093]
[1719938985577,7.0024901,149.06,149.04,6.7093]
[1719938985803,7.0024901,149.06,149.05,23.4819]
[1719938985976,0.8306614,149.09,149.07,6.7082]
[1719938986450,0.8306614,149.09,149.08,6.7078]
[1719938986656,24.52518223,149.09,149.07,23.4783]
[1719938987055,7.82518223,149.09,149.07,23.4783]
[1719938987272,36.7,149.08,149.07,23.4783]
[1719938987650,7.82518223,149.09,149.07,23.4783]
[1719938987849,16.7,149.08,149.07,23.4783]
[1719938988353,7.82518223,149.09,149.08,6.7078]
[1719938988555,24.52518223,149.09,149.08,6.7078]
[1719938989049,24.52518223,149.09,149.07,23.4783]
[1719938989277,16.7,149.08,149.07,23.4783]
[1719938992065,16.7,149.08,149.07,16.7702]
[1719938992577,7.82518223,149.09,149.07,16.7702]
[1719938992771,16.7,149.08,149.07,16.7702]
[1719938993358,16.7,149.08,149.07,23.4784]
[1719938994171,16.7,149.08,149.01,39.3974]
[1719938994385,16.7,149.08,149.07,6.7082]
[1719938997982,16.7,149.08,149.06,23.4801]
[1719938998156,16.7,149.07,149.06,23.4801]
[1719938999291,16.7,149.07,149.05,6.709]
[1719938999579,16.7,149.06,149.05,6.709]
[1719938999758,16.7,149.06,149.03,16.7751]
[1719938999759,16.7,149.06,149.03,23.485]
[1719939000082,16.7,149.06,149.01,33.5543]
[1719939000083,16.7,149.06,149.05,16.7719]
[1719939000259,16.7,149.06,149.05,23.481]
[1719939000658,6.99588024,149.07,149.06,6.7087]
[1719939000879,0.8306614,149.09,149.07,16.7703]
[1719939001080,16.7,149.08,149.07,16.7703]
[1719939001260,43.69664164,149.08,149.07,23.4784]
[1719939001978,43.69664164,149.08,149.07,16.7703]
[1719939002280,43.69664164,149.08,149.04,16.7734]
[1719939002478,16.7,149.06,149.04,16.7734]
[1719939002852,16.7,149.05,149.04,16.7734]
[1719939003056,16.7,149.05,149.01,57.0455]
[1719939003274,33.70454164,149.08,149.04,6.7095]
[1719939003574,16.7,149.05,149.04,6.7095]
[1719939004176,26.99664164,149.08,149.05,6.7089]
[1719939004177,16.7,149.06,149.05,6.7089]
[1719939004364,26.99664164,149.08,149.07,6.7082]
[1719939004557,43.69664164,149.08,149.07,6.7082]
[1719939005176,43.69664164,149.08,149.06,23.4795]
[1719939005386,26.99664164,149.08,149.06,23.4795]
[1719939005674,26.99664164,149.08,149.07,6.7082]
[1719939005865,43.69664164,149.08,149.06,16.771]
[1719939006065,16.7,149.07,149.06,16.771]
[1719939007187,16.7,149.07,149.04,6.7094]
[1719939007391,16.7,149.05,149.04,6.7094]
[1719939008311,33.70444164,149.08,149.05,6.7091]
[1719939008492,16.7,149.06,149.05,6.7091]
[1719939008978,16.7,149.06,149.04,6.7094]
[1719939009663,26.99664164,149.08,149.05,6.7091]
[1719939010166,16.7,149.06,149.04,6.7094]
[1719939010694,16.7,149.05,149.03,16.7746]
[1719939010984,16.7,149.04,149.03,23.4846]
[1719939011171,16.7,149.04,149.01,6.7107]
[1719939011372,16.7,149.04,149.02,16.7761]
[1719939011575,23.69892425,149.04,149.02,16.7761]
[1719939012790,23.69892425,149.04,149.03,6.71]
[1719939013301,6.99892425,149.04,149.03,6.71]
[1719939013493,23.69892425,149.04,149.03,6.71]
[1719939014666,23.69892425,149.04,149.02,23.4865]
[1719939014889,23.69892425,149.04,149.03,6.71]
[1719939016771,30.40852425,149.04,149.0,6.7111]
[1719939016965,16.7,149.01,148.96,16.7821]
[1719939017172,92.9126,149.03,148.94,6.7139]
[1719939017173,16.7,148.97,148.94,6.7139]
[1719939017471,16.7,148.96,148.94,6.7139]
[1719939017682,20.0,149.0,148.95,16.7834]
[1719939017883,16.7,148.96,148.94,6.7141]
[1719939018091,16.7,148.95,148.94,6.7141]
[1719939018885,16.7,148.96,148.95,23.4967]
[1719939019273,6.7111,149.01,148.97,6.7125]
[1719939019472,20.0,149.0,148.98,6.7121]
[1719939019678,20.0,149.0,148.92,50.273]
[1719939019679,16.7,148.99,148.97,23.4941]
[1719939019880,20.0,149.0,148.97,23.4941]
[1719939019881,16.7,148.98,148.97,23.4941]
[1719939020776,20.0,149.0,148.97,23.4941]
[1719939020993,16.7,148.98,148.97,23.4941]
[1719939021492,22.2077,148.97,148.93,16.7856]
[1719939021700,16.7,148.94,148.93,16.7856]
[1719939022395,15.4946,148.97,148.93,16.7856]
[1719939022576,16.7,148.94,148.93,23.5001]
[1719939024710,16.7,148.94,148.86,5.33088639]
[1719939024711,16.7,148.94,148.9,16.7889]
[1719939024903,16.7,148.91,148.9,23.5048]
[1719939028296,23.4132,148.96,148.92,6.7147]
[1719939028597,16.7,148.93,148.92,6.7147]
[1719939030208,26.7136,148.95,148.92,6.7147]
[1719939030515,16.7,148.93,148.9,16.7889]
[1719939030719,16.7,148.91,148.9,16.7889]
[1719939030896,16.7,148.91,148.87,16.7923]
[1719939031097,20.0,148.95,148.87,23.5095]
[1719939031098,16.7,148.88,148.87,23.5095]
[1719939032299,16.7,148.88,148.87,16.7923]